[Event "Bangabandhu Premier Div League 2022"]
[Site "Dhaka"]
[Date "2022.12.02"]
[Round "3.5"]
[White "Masum, Hossain"]
[Black "Mohammed Abdul, Malek"]
[Result "0-1"]
[ECO "A06"]
[WhiteElo "2103"]
[BlackElo "2152"]
[Annotator "TA"]
[PlyCount "70"]
[EventDate "2022.11.30"]
[EventType "team-tourn"]
[EventCountry "BAN"]
[SourceTitle "playchess.com"]
[Source "ChessBase"]
[SourceQuality "1"]
[TimeControl "40/5400+30:1800+30"]

{[%evp 9,70,4,30,15,24,9,43,38,130,120,201,136,181,170,208,235,222,214,243,188,195,153,143,143,152,137,160,107,158,152,336,345,310,45,48,46,58,-10,-10,-10,81,71,123,123,111,52,165,172,159,0,86,0,0,-16,0,-510,-503,-1797,-1713,-1451,-1246,-6245,-1493]} 1. Nf3 {[%emt 0:02:05]} e6 {[%emt 0:00:05]} 2. b3 {[%emt 0:00:10]} d5 {[%emt 0:00:10]} 3. Bb2 {[%emt 0:00:01]} a5 {[%emt 0:00:07]} 4. e3 {[%emt 0:01:41]} Nf6 {[%emt 0:00:57]} 5. d4 {[%emt 0:00:31]} Nbd7 {[%emt 0:00:20]} 6. Bd3 {[%emt 0:00:03] [#] A06: Réti Opening: 1 Nf3 d5.} a4 $146 {[%emt 0:00:39]} ({Predecessor:} 6... b6 7. O-O Bb7 8. Nbd2 Rc8 {½-½ (8) Genov,P (2206)-Todorov,K (2031) Primorsko 2020}) 7. O-O {[%emt 0:02:38]} c5 {[%emt 0:02:49]} (7... a3 $5 {[%cal Ra3b2]} 8. Bc1 b6 $11) 8. c4 {[%emt 0:01:07] White is slightly better.} Qc7 {[%emt 0:01:27]} (8... cxd4 $14 9. exd4 axb3) 9. Nc3 $16 {[%emt 0:00:34][%cal Bb1c3,Bc3b5,Bb5d6][%mdl 32]} (9. bxa4 cxd4 10. cxd5 dxe3 $14) 9... cxd4 {[%emt 0:00:45]} (9... Be7 $16 {is a better defense.} 10. cxd5 (10. Nxa4 dxc4 11. Bxc4 b6 $16) 10... exd5) 10. exd4 {[%emt 0:08:35]} (10. Nxa4 $6 dxc4 11. Bxc4 (11. bxc4 dxe3 12. fxe3 b6 $15) 11... dxe3 $14) 10... dxc4 {[%emt 0:02:12]} 11. bxc4 {[%emt 0:01:37]} a3 {[%emt 0:01:33]} 12. Nb5 {[%emt 0:00:21]} Qb8 {[%emt 0:06:59]} 13. Bc3 {[%emt 0:00:18]} Be7 {[%emt 0:00:28]} 14. Rb1 {[%emt 0:00:12]} O-O {[%emt 0:00:17]} 15. Ne5 {[%emt 0:02:20]} Nxe5 {[%emt 0:02:57]} 16. dxe5 {[%emt 0:00:02]} Nd7 {[%emt 0:00:15]} 17. Nd6 {[%emt 0:02:57]} (17. Qh5 g6 18. Qh6 Nc5) 17... g6 {[%emt 0:02:23][%cal Od7e5]} 18. Bc2 {[%emt 0:08:46]} (18. Be4 $142) 18... Rd8 {[%emt 0:07:03]} (18... Ra6 $142) 19. Qd4 {[%emt 0:04:49]} Nxe5 $2 {[%emt 0:07:23]} (19... f6 $16) 20. Qxe5 $18 {[%emt 0:01:43][%csl Gc3][%cal Re5g7]} f6 {[%emt 0:00:09] [#]} 21. Qe3 {[%emt 0:00:00]} (21. Nxc8 $1 $18 fxe5 22. Nxe7+ Kf7 23. Nc6 bxc6 24. Rxb8 Raxb8 25. Re1) 21... Qxd6 $14 {[%emt 0:01:04]} 22. Rfd1 {[%emt 0:05:23] Prevents e5.} Qc7 {[%emt 0:00:58]} 23. h4 {[%emt 0:03:23]} (23. Rxd8+ $14 Bxd8 24. h4) 23... Rxd1+ $11 {[%emt 0:07:00]} 24. Rxd1 {[%emt 0:00:15][%cal Oh4h5] Hoping for h5!} Qxc4 {[%emt 0:02:00]} (24... e5 $11 {remains equal.}) 25. h5 $16 {[%emt 0:06:38][%cal Oe3h6] Qh6! would kill now.} Qg4 {[%emt 0:14:18]} (25... gxh5 26. Qh6 $1 e5 27. Bxh7+ Kf7 28. Qg6+ Kf8 29. Bb4 $1 {[%mdl 512]}) (25... Qxa2 $2 26. Qe4 e5 27. hxg6 $18) ({Better is} 25... Qh4) 26. hxg6 {[%emt 0:00:35]} hxg6 {[%emt 0:00:04][%cal Bh7g6,Bg6g5,Bg5g4][%mdl 32]} 27. Rd4 {[%emt 0:18:42]} (27. Rd3 $1 $16) 27... Qh5 {[%emt 0:08:01] [#]} (27... Qg5 $1 $14) 28. Rc4 $1 $18 {[%emt 0:03:30][%cal Oc4c8][%mdl 1024] White has strong compensation.} Kf8 {[%emt 0:03:34]} 29. Rf4 $2 {[%emt 0:17:04]} (29. g4 $16 Qh4 30. Qb6) 29... Kf7 {[%emt 0:05:07] [#]} (29... Qg5 $11) 30. Qg3 {[%emt 0:05:06]} ({White should play} 30. Rf3 $1 $16 {[%cal Rf3h3] And now Rh3 would win.} e5 31. Bxe5) 30... g5 $1 $11 {[%emt 0:02:22]} 31. Rf3 {[%emt 0:02:16] Black must now prevent Qc7.} g4 {[%emt 0:04:36]} (31... e5 $5 {[%cal Rc8g4]} 32. Bb3+ (32. Qxe5 $2 Qxf3 33. Bb3+ Ke8 $19) 32... Kg6 33. Bxe5 Bg4 34. Bxf6 Rc8 $11) 32. Re3 {[%emt 0:02:15][%mdl 8192]} (32. Bxf6 $1 $11 {and White has nothing to worry.} e5 33. Bb3+ (33. Bxe5+ $2 {is the wrong capture.} gxf3 34. Qg7+ Ke6 $19) 33... Be6 34. Bxe5+ gxf3 35. Qg7+ Ke8 36. Bxe6 fxg2 37. Qg8+ Bf8 38. Bd7+ (38. Kxg2 Rd8 $15) 38... Kd8 39. Qxf8+ (39. Bh3 Qxh3 40. Qxf8+ Kd7 $11) 39... Kxd7 40. Qd6+ Ke8 41. Qe6+ Kf8 42. Bd6+ (42. Qf6+ Qf7 $11) 42... Kg7 43. Be5+ (43. Kxg2 $2 Qg6+ 44. Qxg6+ Kxg6 $19) 43... Kf8 44. Bd6+ (44. Qf6+ Qf7 $11) 44... Kg7 45. Be5+ (45. Kxg2 $2 Qg6+ 46. Qxg6+ Kxg6 $19) 45... Kf8) 32... Bd7 $19 {[%emt 0:01:21] aiming for ...Rh8. Black is clearly winning.} 33. Qc7 {[%emt 0:00:07] [#]} (33. Bxf6 $142 Bxf6 34. Qc7) 33... Rh8 $1 {[%emt 0:01:04][%csl Gh8][%cal Rh5h1]} 34. Kf1 {[%emt 0:01:07]} Bb5+ {[%emt 0:01:02]} 35. Ke1 {[%emt 0:00:24]} Rd8 {[%emt 0:01:56] Weighted Error Value: White=0.85/Black=0.31} (35... Qd5 $142 36. f4 Qxg2) 0-1

[Event "Bangabandhu Premier Div League 2022"]
[Site "Dhaka"]
[Date "2022.12.02"]
[Round "3.5"]
[White "Shawket Bin, Osman Shaon"]
[Black "Md, Mesbah Uddin"]
[Result "1-0"]
[ECO "D02"]
[WhiteElo "2069"]
[BlackElo "1778"]
[Annotator "TA"]
[PlyCount "115"]
[EventDate "2022.12.01"]
[EventCountry "BAN"]
[SourceTitle "playchess.com"]
[Source "ChessBase"]
[SourceQuality "1"]
[TimeControl "40/5400+30:1800+30"]

{[%evp 9,115,26,47,39,73,68,116,116,174,187,168,170,211,216,215,119,87,77,182,228,204,215,86,18,19,0,42,3,102,100,89,19,8,14,21,14,22,0,22,28,27,-2,0,-7,-8,-7,0,0,0,0,0,-28,0,0,0,-18,-8,-18,-27,-21,-14,-26,81,70,64,87,179,168,154,128,145,0,0,0,0,0,0,0,1529,1531,1466,1300,1302,1973,1818,2211,1576,2089,2045,1900,1721,1373,893,414,1566,414,2710,414,3014,414,29982,29983,29983,29984,29984,29985,29985,29986]} 1. d4 {[%emt 0:03:41]} d5 {[%emt 0:00:09]} 2. Nf3 {[%emt 0:00:21]} Nf6 {[%emt 0:00:49]} 3. c4 {[%emt 1:27:58]} Bg4 {[%emt 0:00:39]} 4. Ne5 {[%emt 0:00:30]} e6 {[%emt 1:30:53]} 5. Bg5 {[%emt 0:00:00]} Bh5 {[%emt 0:00:30]} 6. Qb3 {[%emt 0:01:00] [#] D02: 1 d4 d5 2 Nf3 sidelines, including 2...Nf6 3 g3 and 2...Nf6 3 Bf4.} (6. cxd5 {seems wilder.} Qxd5 7. Nc3 Bb4 8. Qa4+) 6... Qc8 $146 {[%emt 0:00:30]} ({Predecessor:} 6... Be7 7. Qh3 Nbd7 8. cxd5 exd5 9. g4 Bg6 10. Nxg6 fxg6 11. Nc3 c6 12. f3 h6 {1-0 (37) Villar,J (926)-Linart,L (878) LSS email 2012}) 7. cxd5 {[%emt 0:00:30]} Nxd5 {[%emt 0:00:00]} (7... exd5 $14 {feels stronger.} 8. Nc3 (8. Bxf6 gxf6 9. Nd3 c6 $14) 8... Bd6) 8. e4 $16 {[%emt 0:00:30] White is better.} Bb4+ {[%emt 0:01:00]} (8... Nb4 $16 {keeps fighting.}) 9. Nd2 $18 {[%emt 0:00:30]} Bxd2+ {[%emt 0:00:00]} 10. Bxd2 {[%emt 0:00:00]} (10. Kxd2 Nb6 $16) 10... Nb6 {[%emt 0:00:00]} 11. Qg3 {[%emt 0:01:00]} O-O {[%emt 0:01:30]} 12. Bh6 {[%emt 0:00:00]} (12. Be2 $18 f6 13. Bxh5 fxe5 14. dxe5) 12... Bg6 $16 {[%emt 0:00:30]} 13. h4 {[%emt 0:01:00][%cal Oh4h5]} (13. Nxg6 {simplifies} hxg6 14. Be3 Qd7 15. Rc1) 13... gxh6 {[%emt 0:00:00]} (13... Nc6 $16) 14. h5 $18 {[%emt 0:00:00][%mdl 64] Pin} Kg7 {[%emt 0:00:00][%cal Ob8d7]} 15. hxg6 {[%emt 0:00:00]} (15. Qf4 Bxe4 16. Qxe4 f5 $11) 15... hxg6 {[%emt 0:01:30]} (15... fxg6 $18 16. Qh4 h5) 16. Ng4 {[%emt 0:01:30] White has more active pieces. The black rooks are badly placed.} (16. Qf4 $16 g5 17. Qf3 (17. Qh2 Rh8 $11)) 16... Qd8 {[%emt 0:00:30]} 17. O-O-O {[%emt 0:00:00]} (17. Nxh6 $2 Qxd4 18. Be2 Qxb2 $19) 17... N8d7 {[%emt 0:00:30]} (17... h5 $5 {[%cal Rh5g4]} 18. Ne5 Rh8 $11) 18. Rxh6 {[%emt 0:00:00]} (18. d5 {is more complex.} Qe7 19. dxe6 Nf6 20. Nxf6 Qxf6 21. exf7 Rxf7 22. f3) 18... Qe7 {[%emt 0:00:30]} (18... Nf6 $1 $11 19. Rh1 (19. Qe5 Nbd7 $11) 19... Nxg4 20. Qxg4 Qf6) 19. Be2 $16 {[%emt 0:01:30][%cal Od1h1]} (19. Qxc7 $2 Rac8 $19) 19... Rh8 {[%emt 0:00:30]} 20. Qe3 {[%emt 0:00:30]} (20. Rdh1 $16 {[%cal Og3h2]} Rxh6 21. Rxh6) 20... Nf6 $1 $132 {[%emt 0:00:30][%mdl 2048] Black puts up resistance} 21. Rxh8 {[%emt 0:00:00]} (21. Rdh1 $2 Nxg4 22. Bxg4 Nc4 $19) 21... Rxh8 {[%emt 0:00:00]} (21... Nxg4 $5 22. Rh7+ (22. Bxg4 Rxh8 23. Kb1 c6 $11) 22... Kxh7 23. Bxg4 Rh8 $11) 22. Ne5 {[%emt 0:00:00]} Nfd7 {[%emt 0:00:00]} 23. f4 {[%emt 0:00:00]} c5 {[%emt 0:01:30]} 24. Nxd7 {[%emt 0:00:00]} (24. Nf3 {is more complex.} cxd4 25. Qxd4+ Nf6 26. Kb1) 24... Nxd7 {[%emt 0:00:30][%cal Bb6d7,Bd7f6,Bf6h5][%mdl 32]} 25. Bb5 {[%emt 0:02:30]} cxd4 {[%emt 0:00:00]} 26. Qxd4+ {[%emt 0:00:30]} Nf6 {Threatens to win with ...Qc7+.} 27. Kb1 $1 {[%emt 0:00:30][%cal Og2g4]} ({Don't play} 27. Qxa7 Qc7+ 28. Kb1 Qxf4 29. Qxb7 Qg4 $15) 27... a6 {[%emt 0:00:00]} (27... Rc8 {looks sharper.} 28. e5 Nd5 29. g3 Qc5) 28. Bc4 {[%emt 0:00:00]} Rc8 {[%emt 0:02:00]} 29. Bb3 {[%emt 0:00:00]} Qc5 {[%emt 0:00:00]} 30. Qd3 {[%emt 0:01:30]} Rc7 {[%emt 0:01:00]} 31. e5 {[%emt 0:00:00][%cal Be4e5,Be5e6,Be6e7][%mdl 32]} Nh5 {[%emt 0:00:30]} 32. Qf3 {[%emt 0:00:00]} Qc6 {[%emt 0:00:00] Prevents g4.} 33. Qe3 {[%emt 0:01:30]} (33. Rf1 {simplifies} Qxf3 34. Rxf3 g5 35. f5) 33... Qxg2 {[%emt 0:00:00]} 34. f5 $1 {[%emt 0:00:00]} exf5 {[%emt 0:00:00]} (34... gxf5 $2 35. Rg1 $18) 35. e6 {[%emt 0:00:00] And now Qe5+ would win.} Qe4+ {[%emt 0:00:00]} (35... Nf6 $11 36. exf7 Qe4+ 37. Qxe4 Nxe4) 36. Qxe4 $16 {[%emt 0:00:00]} fxe4 {[%emt 0:00:00][%mdl 4096] Endgame KRB-KRN} 37. Rd7 {[%emt 0:00:00]} Rc8 {[%emt 0:00:00]} (37... Rxd7 $2 38. exd7 f5 39. d8=Q $18 (39. d8=R g5 $18)) (37... Rc5 $16 {was worth a try.}) 38. Rxf7+ $18 {[%emt 0:00:00]} Kh6 {[%emt 0:00:00]} 39. e7 $1 {[%emt 0:03:00] Hoping for Rf8.} Re8 {[%emt 0:04:00] [#]} 40. Bd5 {[%emt 0:00:30]} (40. Be6 $1 $16 {[%cal Re6d7] Black must now prevent Bd7.} e3 41. Kc1) 40... e3 $11 {[%emt 0:00:00]} 41. Kc2 {[%emt 0:28:12]} Ng3 {[%emt 0:31:00] Strongly threatening ...Rc8+.} 42. Bxb7 {[%emt 0:00:00] aiming for Bc6.} Nf5 {[%emt 0:00:00]} 43. Bxa6 {[%emt 0:00:00]} Rxe7 $2 {[%emt 0:00:00][%mdl 8192] White leaves nothing to chance now.} (43... Nxe7 $11 44. Bb5 {[#]} Nc6 $1) 44. Rxe7 $18 {[%emt 0:00:00]} Nxe7 $11 {[%emt 0:00:00] KB-KN} 45. Kd3 {[%emt 0:00:00]} Nd5 {[%emt 0:00:00]} 46. Bc4 {[%emt 0:00:00]} Nb6 {[%emt 0:00:00]} 47. Bb3 {[%emt 0:00:00]} Kg5 {[%emt 0:00:00]} 48. Kxe3 {[%emt 0:00:00]} Kf5 {[%emt 0:00:00]} 49. a4 {[%emt 0:06:18]} Ke5 {[%emt 0:00:00]} 50. a5 {[%emt 0:00:00]} Nc8 {[%emt 0:00:00]} 51. Bc4 {[%emt 0:00:00]} (51. Kd3 $142 {Kc4 is the strong threat.} Kd6 52. Kc4) 51... Kd6 {[%emt 0:00:00]} (51... Nd6 $142 52. Be2 g5) 52. b4 $18 {[%emt 0:00:00][%cal Bb2b4,Bb4b5,Bb5b6,Bb6b7][%mdl 32]} g5 {[%emt 0:00:00]} (52... Ne7 $142 53. Kd2 g5) 53. Be2 {[%emt 0:00:00]} (53. Kd4 $142 Ne7 54. b5) 53... Na7 {[%emt 0:06:00]} (53... Kc6 $142 54. Kd3 Kb5 55. Kc3+ Kc6) 54. b5 {[%emt 0:00:00]} Kc5 {[%emt 0:00:00]} (54... Nc8 $18 55. Kd4 (55. b6 Nxb6 56. Kf2 Kc6 $11) 55... Ne7) 55. b6 {[%emt 0:00:00] White mates.} Nc6 {[%emt 0:00:00]} 56. b7 {[%emt 0:00:00]} Nb8 {[%emt 0:01:30]} 57. a6 {[%emt 0:00:00]} Kb6 {[%emt 0:00:00] [#]} 58. Bb5 $1 {[%emt 0:00:00][%mdl 512] Weighted Error Value: White=0.35/Black=0.35} 1-0

[Event "Bangabandhu Premier Div League 2022"]
[Site "Dhaka"]
[Date "2022.12.02"]
[Round "3.6"]
[White "Muthaiah AL"]
[Black "Aaryan Varshney"]
[Result "1-0"]
[ECO "D02"]
[WhiteElo "2454"]
[BlackElo "2312"]
[Annotator "TA"]
[PlyCount "131"]
[EventDate "2022.11.30"]
[EventType "team-tourn"]
[EventCountry "BAN"]
[SourceTitle "playchess.com"]
[Source "ChessBase"]
[SourceQuality "1"]
[TimeControl "40/5400+30:1800+30"]

{[%evp 11,131,17,23,20,32,0,0,7,7,20,21,20,12,10,22,3,15,2,3,-1,60,54,53,52,60,62,65,70,72,71,68,68,66,40,78,70,82,77,79,66,70,37,47,37,37,20,36,26,60,31,242,261,266,206,206,201,213,203,381,201,200,201,203,206,212,211,208,200,235,206,283,277,277,245,255,256,249,233,442,370,362,377,358,353,376,371,375,385,373,374,347,341,341,330,318,311,388,353,561,518,787,767,712,754,760,753,1090,1055,1069,1053,904,897,5956,5956,5371,5249,29988,29989,29989,29990,29990,29991]} 1. d4 {[%emt 0:00:08]} d5 {[%emt 0:02:11]} 2. Bf4 {[%emt 0:00:45]} Nf6 {[%emt 0:00:06]} 3. e3 {[%emt 0:00:14]} c5 {[%emt 0:00:07]} 4. Nf3 {[%emt 0:00:27]} Nc6 {[%emt 0:00:14]} 5. Nbd2 {[%emt 0:00:39]} Bg4 {[%emt 0:02:06]} 6. c3 {[%emt 0:06:35]} e6 {[%emt 0:00:14]} 7. Qb3 {[%emt 0:04:57] D02: 1 d4 d5 2 Nf3 sidelines, including 2...Nf6 3 g3 and 2...Nf6 3 Bf4.} Qc8 {[%emt 0:00:14]} 8. Ne5 {[%emt 0:09:51]} Nxe5 {[%emt 0:00:08]} 9. Bxe5 {[%emt 0:02:04] The position is equal.} c4 {[%emt 0:05:18]} 10. Qa4+ {[%emt 0:02:12]} Qd7 {[%emt 0:09:43]} 11. Qxd7+ {[%emt 0:04:15]} Nxd7 {[%emt 0:00:56]} 12. Bf4 {[%emt 0:00:28]} b5 {[%emt 0:02:45]} 13. e4 {[%emt 0:03:40]} Nb6 {[%emt 0:04:34]} 14. h4 {[%emt 0:05:36] Black should prevent f3.} Bh5 {[%emt 0:06:06]} 15. f3 {[%emt 0:08:02] [#] Black must now prevent g4.} f5 {[%emt 0:03:14] Prevents g4.} ({Black should try} 15... h6 $11) 16. exf5 $14 {[%emt 0:08:32]} exf5 {[%emt 0:00:22]} 17. Be2 {[%emt 0:00:21][%cal Bf1e2,Be2d1,Bd1c2][%mdl 32] [#]} Be7 $146 {[%emt 0:01:54]} ({Predecessor:} 17... b4 18. Kf2 Kd7 19. g4 Bf7 20. cxb4 Bxb4 21. gxf5 Na4 22. Rab1 Bd6 23. Bxd6 Kxd6 {1-0 (60) Shyam,S (2518)-Aditya,M (2486) Delhi 2022}) 18. Nf1 {[%emt 0:05:20]} O-O {[%emt 0:03:07]} 19. Ne3 {[%emt 0:01:36]} Be8 {[%emt 0:17:19]} 20. Kd2 {[%emt 0:03:51]} Bc6 {[%emt 0:01:11]} 21. h5 {[%emt 0:05:12]} b4 {[%emt 0:06:31]} 22. Bd1 {[%emt 0:03:20]} Bd7 {[%emt 0:08:25]} 23. g3 {[%emt 0:04:37]} Rac8 {[%emt 0:15:14]} 24. Bc2 {[%emt 0:08:20]} Rf7 {[%emt 0:00:14]} 25. Rae1 {[%emt 0:00:34][%cal Oe3f5]} Bf8 {[%emt 0:00:14]} 26. a3 {[%emt 0:00:14] White is more active.} b3 {[%emt 0:00:40]} 27. Bb1 {[%emt 0:02:03]} Na4 {[%emt 0:00:29]} 28. Kc1 {[%emt 0:02:14][%cal Bd2c1,Bc1c2,Bc2d3][%mdl 32]} (28. Nd1 {simplifies} Rc6 29. Re5 Nb6 30. Re2) 28... Bxa3 {[%emt 0:08:06]} 29. bxa3 {[%emt 0:00:09]} Nxc3 {[%emt 0:00:02]} 30. Bd6 {[%emt 0:01:17][%cal Bf4d6,Bd6c5,Bc5d4][%mdl 32] And now Bb4 would win.} Nb5 $2 {[%emt 0:01:46] [#] This costs Black the game.} (30... a5 $1 $14) 31. Bc5 $1 $18 {[%emt 0:00:15]} c3 {[%emt 0:00:24]} 32. Nxd5 {[%emt 0:00:22]} b2+ {[%emt 0:01:13]} 33. Kc2 {[%emt 0:05:09]} Nxd4+ {[%emt 0:00:40]} 34. Bxd4 {[%emt 0:00:09]} Ba4+ {[%emt 0:00:05]} 35. Kd3 {[%emt 0:00:09]} c2 {[%emt 0:00:32]} 36. Nc3 {[%emt 0:04:53]} ({Not} 36. Bxb2 cxb1=R 37. Rxb1 Rd7 $11) 36... c1=Q {[%emt 0:01:14]} 37. Rxc1 {[%emt 0:00:00] Chess con chili.} bxc1=Q {[%emt 0:01:22]} 38. Rxc1 {[%emt 0:00:00] aiming for Ba2.} Bb3 {[%emt 0:00:00]} 39. f4 {[%emt 0:00:00]} Rfc7 {[%emt 0:00:08]} 40. Be5 {[%emt 0:00:40]} Rc6 {[%emt 0:00:39]} 41. Kd2 {[%emt 0:31:07]} Be6 {[%emt 0:01:52]} 42. Bd3 {[%emt 0:00:00]} Rd8 {[%emt 0:00:29] Threatens to win with ...Bc4.} 43. Ke3 {[%emt 0:00:00]} Rdc8 {[%emt 0:01:33]} 44. a4 {[%emt 0:00:00]} Kf7 $2 {[%emt 0:00:38]} (44... a6 {is a better defense.} 45. a5 g6 46. hxg6 hxg6) 45. Bb5 {[%emt 0:00:00]} Rc5 {[%emt 0:00:28]} 46. Bd4 {[%emt 0:00:00] Against a5} R5c7 {[%emt 0:00:18]} 47. Ba6 {[%emt 0:00:00] Against a5} Re8 {[%emt 0:00:18] Strongly threatening ...Bc8+.} 48. Be5 {[%emt 0:00:00]} Rc5 {[%emt 0:00:49]} 49. Kd4 {[%emt 0:00:00]} Rc6 {[%emt 0:00:29]} 50. Bb5 {[%emt 0:00:00]} Rd8+ {[%emt 0:00:06]} 51. Ke3 {[%emt 0:00:00]} Rc5 {[%emt 0:00:24]} 52. Bd4 {[%emt 0:00:00]} Rc7 {[%emt 0:00:12]} 53. Ne2 {[%emt 0:00:00]} Re7 {[%emt 0:03:35]} 54. Be5 {[%emt 0:00:00]} g6 {[%emt 0:00:27]} (54... Rc8 $142 55. Rxc8 Bxc8) 55. Nd4 {[%emt 0:00:00]} Bd5 {[%emt 0:00:22]} (55... Rc8 $142) 56. hxg6+ {[%emt 0:00:00]} hxg6 {[%emt 0:00:34]} 57. Nc6 {[%emt 0:00:00]} Bxc6 {[%emt 0:00:14]} 58. Rxc6 {[%emt 0:00:00]} g5 {[%emt 0:00:23]} 59. Rf6+ {[%emt 0:00:00]} Kg8 {[%emt 0:00:06]} 60. Rg6+ {[%emt 0:00:00]} Kh7 {[%emt 0:00:11]} 61. Rxg5 {[%emt 0:00:00]} Rd1 {[%emt 0:00:08]} 62. Bd3 {[%emt 0:00:00]} Kh6 {[%emt 0:00:09]} 63. Rxf5 {[%emt 0:00:00]} ({Weaker is} 63. Bxf5 Rxe5+ 64. Kf2 Red5 $16) 63... Rd7 {[%emt 0:00:09]} 64. Rf6+ {[%emt 0:00:00] White mates.} Kg7 {[%emt 0:00:12]} 65. Rd6+ {[%emt 0:00:00]} Kf7 {[%emt 0:00:02]} 66. Rxd7+ {[%emt 0:00:00] Weighted Error Value: White=0.11 (very precise) /Black=0.35} 1-0

[Event "Bangabandhu Premier Div League 2022"]
[Site "Dhaka"]
[Date "2022.12.02"]
[Round "3.6"]
[White "Mohammad, Shameem"]
[Black "Mendonca, Leon Luke"]
[Result "0-1"]
[ECO "A31"]
[WhiteElo "1892"]
[BlackElo "2565"]
[Annotator "TA"]
[PlyCount "88"]
[EventDate "2022.12.01"]
[EventCountry "BAN"]
[SourceTitle "playchess.com"]
[Source "ChessBase"]
[SourceQuality "1"]
[TimeControl "40/5400+30:1800+30"]

{[%evp 10,88,33,15,20,7,10,-86,-87,-87,-77,-138,-36,-138,-139,-139,-122,-132,-130,-125,-128,-150,-149,-154,-166,-158,-152,-155,-134,-295,-300,-275,-235,-372,-364,-452,-455,-557,-454,-610,-614,-739,-692,-809,-787,-778,-676,-865,-827,-799,-839,-840,-715,-803,-716,-853,-845,-857,-853,-837,-820,-866,-820,-778,-679,-1022,-1000,-1001,-998,-1266,-1253,-1211,-1201,-1674,-1489,-2595,-1859,-12830,-4781,-12845,-12845]} 1. d4 {[%emt 0:02:36]} Nf6 {[%emt 0:00:17]} 2. c4 {[%emt 0:00:13]} c5 {[%emt 0:00:35]} 3. Nf3 {[%emt 0:00:39]} cxd4 {[%emt 0:01:04]} 4. Nxd4 {[%emt 1:29:02]} b6 {[%emt 1:30:34]} 5. Nc3 {[%emt 0:00:00]} Bb7 {[%emt 0:00:30]} 6. Bf4 {[%emt 0:00:00]} g6 $5 {[%emt 0:00:30][%mdl 4] [#] A promising side line. A31: Symmetrical English: 2 Nf3 Nf6 3 d4.} 7. Qd3 $146 {[%emt 0:01:30]} ({Predecessor:} 7. Ndb5 Na6 8. e4 Bg7 9. Bd3 O-O 10. O-O Nc5 11. Re1 a6 12. Nd4 Ng4 13. Nf3 e5 14. Bg5 {½-½ (27) Aguilar,A (2338)-Torres,F (2187) Villa Tehuelches 2019}) 7... Bg7 {[%emt 0:00:30]} 8. Bxb8 {[%emt 0:00:30]} (8. e4 $11) 8... Qxb8 $17 {[%emt 0:00:00] Black is better.} 9. Nf3 {[%emt 0:00:00]} O-O {[%emt 0:00:00]} 10. g3 {[%emt 0:01:00]} (10. e3 $142) 10... Ng4 {[%emt 0:01:30]} (10... Rd8 $17 {White must now prevent ...d5.} 11. Bg2 d5) 11. Bg2 {[%emt 0:00:00] [#]} ({White should play} 11. Bh3 $15 Bxf3 12. exf3) 11... Ne5 $1 $36 {[%emt 0:00:00][%mdl 2048] Keeping White busy. Black is more active.} 12. Nxe5 {[%emt 0:00:00]} Bxg2 {[%emt 0:00:00] A strong pair of Bishops.} 13. Rg1 {[%emt 0:00:00]} Qxe5 {[%emt 0:00:00]} 14. Rxg2 {[%emt 0:00:00]} Qa5 {[%emt 0:00:00]} 15. Rc1 {[%emt 0:00:00]} Qb4 {[%emt 0:00:00]} 16. b3 {[%emt 0:00:00] [#]} d5 $1 {[%emt 0:00:00] Threatens to win with ...d4.} 17. Kf1 {[%emt 0:00:00]} dxc4 {[%emt 0:03:30]} 18. Qxc4 {[%emt 0:04:00]} Qa3 {[%emt 0:00:00]} 19. Nb5 $2 {[%emt 0:00:00] Loses the game.} (19. Ne4 $17) 19... Qxa2 $19 {[%emt 0:00:00]} 20. Rg1 {[%emt 0:01:00]} Bb2 {[%emt 0:00:00]} 21. Rc2 {[%emt 0:00:00]} (21. b4 $142 Qa4 22. Nc3) 21... Rac8 $1 {[%emt 0:02:00]} 22. Qxc8 {[%emt 0:00:00]} Rxc8 {[%emt 0:00:00] Black is clearly winning.} 23. Rxc8+ {[%emt 0:00:00]} Kg7 {[%emt 0:01:00]} 24. Kg2 {[%emt 0:00:00]} Qxb3 {[%emt 0:00:00]} 25. Nxa7 {[%emt 0:00:00]} Qa4 {[%emt 0:00:00]} 26. Nc6 {[%emt 0:00:00]} Qe4+ {[%emt 0:00:00]} 27. Kf1 {[%emt 0:03:30]} Qe6 {[%emt 0:02:00]} 28. Na7 {[%emt 0:00:00]} Qd7 {[%emt 0:00:00] Inhibits Rd8.} 29. Kg2 {[%emt 0:00:26]} Qxa7 {[%emt 0:00:00]} 30. Rc2 {[%emt 0:00:03]} Bd4 {[%emt 0:00:00]} 31. Rd1 {[%emt 0:00:11]} Bc5 {[%emt 0:00:00]} 32. Rdc1 {[%emt 0:00:54]} Bd6 {[%emt 0:00:00]} 33. Rb1 {[%emt 0:00:11]} Qb7+ {[%emt 0:03:00]} 34. Kg1 {[%emt 0:00:03]} b5 {[%emt 0:00:00][%cal Bb6b5,Bb5b4][%mdl 32]} 35. e3 {[%emt 0:01:12]} b4 {[%emt 0:00:00]} 36. Rcb2 {[%emt 0:00:15]} Qd5 {[%emt 0:00:00]} 37. h4 {[%emt 0:00:48]} Qc4 {[%emt 0:00:00]} 38. Kg2 {[%emt 0:00:27]} h5 {[%emt 0:00:00]} 39. Kf3 {[%emt 0:00:22]} f6 {[%emt 0:00:00][%cal Bf7f6,Bf6g5][%mdl 32]} 40. Kg2 {[%emt 0:00:12]} Qe4+ {[%emt 0:00:00]} 41. Kg1 {[%emt 0:30:26]} g5 {[%emt 0:34:00]} 42. hxg5 {[%emt 0:00:23]} fxg5 {[%emt 0:00:00]} 43. Rd1 {[%emt 0:00:59]} h4 {[%emt 0:00:00]} 44. gxh4 {[%emt 0:00:00]} Qg4+ {[%emt 0:00:00] Weighted Error Value: White=0.59/Black=0.19 (very precise)} 0-1